bitfinex/quotes_SOLUSD_20250108
["timestamp","ask_amount","ask_price","bid_price","bid_amount"]
[1736363698121,20.0,194.81,194.69,25.95627757]
[1736363698307,20.0,194.81,194.7,25.18618102]
[1736363698490,3.4944,194.85,194.71,25.95622316]
[1736363698809,3.4944,194.85,194.72,25.18618102]
[1736363699015,3.4944,194.85,194.71,0.77004214]
[1736363699211,3.4944,194.85,194.68,12.8409]
[1736363699212,3.4944,194.85,194.68,25.18618102]
[1736363699421,20.0,194.81,194.69,25.18618102]
[1736363699596,20.0,194.81,194.7,25.95626516]
[1736363699991,20.0,194.81,194.7,0.77008414]
[1736363700205,20.0,194.77,194.64,0.77008306]
[1736363700390,23.776884,194.76,194.64,0.77008306]
[1736363700601,20.0,194.77,194.65,25.18618102]
[1736363700791,20.0,194.77,194.64,25.95626408]
[1736363700990,43.776884,194.81,194.62,1.5569]
[1736363701202,0.3357,194.8,194.62,1.5569]
[1736363701712,20.0,194.71,194.57,25.18618102]
[1736363702009,20.0,194.67,194.56,32.93458102]
[1736363702214,20.0,194.67,194.56,33.70524631]
[1736363702510,5.3357,194.8,194.58,25.18618102]
[1736363702511,35.3357,194.8,194.58,25.18618102]
[1736363702809,3.18,194.78,194.57,25.18618102]
[1736363703000,20.0,194.74,194.57,25.18618102]
[1736363703204,20.0,194.74,194.56,33.70524631]
[1736363703799,20.0,194.74,194.56,36.88524631]
[1736363704006,20.0,194.74,194.56,3.95066529]
[1736363704201,20.0,194.74,194.56,29.13684631]
[1736363704639,20.0,194.74,194.58,25.18618102]
[1736363704927,20.0,194.74,194.59,25.956742]
[1736363705133,3.4944,194.79,194.64,25.18618102]
[1736363705511,23.776884,194.78,194.65,3.18]
[1736363705806,23.776884,194.78,194.63,3.18]
[1736363705997,3.4944,194.79,194.63,3.18]
[1736363706442,20.0,194.77,194.64,25.18618102]
[1736363706607,20.0,194.77,194.64,25.95647585]
[1736363707132,23.776884,194.78,194.64,0.77029483]
[1736363707313,20.0,194.75,194.62,6.5354]
[1736363707517,20.0,194.71,194.61,1.6068]
[1736363707715,20.0,194.67,194.56,1.6514]
[1736363707911,20.0,194.67,194.56,4.8314]
[1736363708115,20.0,194.67,194.57,25.18618102]
[1736363708331,20.0,194.67,194.59,25.18618102]
[1736363708939,3.4944,194.79,194.59,25.18618102]
[1736363709122,5.52362947,194.79,194.61,25.18618102]
[1736363709316,20.0,194.76,194.61,25.18618102]
[1736363709519,20.0,194.72,194.61,25.18618102]
[1736363710121,20.0,194.72,194.62,0.77050488]
[1736363710526,20.0,194.72,194.62,25.9566859]
[1736363710830,3.4944,194.79,194.62,0.77050488]
[1736363711014,3.4944,194.79,194.66,25.18618102]
[1736363711437,3.4944,194.79,194.67,25.18618102]
[1736363711638,3.4944,194.85,194.73,25.18618102]
[1736363712135,3.4944,194.85,194.74,25.18618102]
[1736363712336,3.4944,194.9,194.76,25.18618102]
[1736363712509,3.4944,194.9,194.77,25.18618102]
[1736363712705,3.4944,194.9,194.78,25.18618102]
[1736363713150,23.776884,194.89,194.76,25.18618102]
[1736363713432,3.4944,194.9,194.76,25.18618102]
[1736363713433,20.0,194.86,194.76,25.18618102]
[1736363714415,3.4944,194.9,194.76,25.18618102]
[1736363714613,20.0,194.86,194.76,25.18618102]
[1736363714824,20.0,194.86,194.75,6.95499729]
[1736363715055,3.4944,194.9,194.8,25.18618102]
[1736363715229,3.4944,194.9,194.79,25.18618102]
[1736363715946,3.4944,194.95,194.81,25.18618102]
[1736363716122,0.3357,194.98,194.85,25.18618102]
[1736363716454,0.3357,194.98,194.85,3.18]
[1736363716621,20.3357,194.98,194.85,3.18]
[1736363716938,20.0,194.9,194.85,3.18]
[1736363717334,20.0,194.9,194.8,1.5829]
[1736363717634,20.0,194.97,194.82,25.18618102]
[1736363717841,20.0,194.97,194.84,25.18618102]
[1736363718046,0.3357,194.98,194.84,25.18618102]
[1736363718239,0.3357,194.98,194.86,25.18618102]
[1736363718442,23.776884,194.99,194.86,25.18618102]
[1736363718618,20.0,194.96,194.86,25.18618102]
[1736363718937,3.4944,195.0,194.88,25.18618102]
[1736363719151,0.3357,195.04,194.87,0.76941484]
[1736363719152,0.3357,195.04,194.92,25.18618102]
[1736363719320,3.4944,195.05,194.9,25.18618102]
[1736363719523,20.0,195.01,194.86,31.62528102]
[1736363719722,20.0,194.97,194.85,3.18]
[1736363720042,20.0,194.93,194.8,32.89928102]
[1736363720241,20.0,194.93,194.81,25.95583264]
[1736363720429,20.0,194.93,194.84,25.18618102]
[1736363720618,0.3357,195.03,194.87,25.18618102]
[1736363720817,20.0,195.01,194.86,25.18618102]
[1736363721035,20.0,194.97,194.86,25.18618102]
[1736363721418,20.0,194.97,194.89,25.18618102]
[1736363721645,0.3357,195.03,194.91,25.18618102]
[1736363721843,3.4944,195.05,194.94,25.18618102]
[1736363722027,3.4944,195.05,194.95,25.18618102]
[1736363722348,3.4944,195.05,194.94,25.18618102]
[1736363722583,3.4944,195.05,194.93,25.18618102]
[1736363722755,3.4944,195.05,194.93,25.95534254]
[1736363723344,0.3357,195.08,194.95,25.18618102]
[1736363723724,0.3357,195.08,194.95,25.95522406]
[1736363724123,0.3357,195.08,194.93,25.18618102]
[1736363724327,20.0,195.06,194.92,1.6149]
[1736363724530,20.0,195.06,194.87,35.27276297]
[1736363724742,20.0,195.04,194.87,3.18]
[1736363724936,20.0,194.96,194.87,3.18]
[1736363725143,20.0,195.06,194.87,28.36618102]
[1736363725334,20.0,195.06,194.88,25.18618102]
[1736363725534,23.776884,195.05,194.87,28.36618102]
[1736363725732,20.0,194.98,194.87,28.36618102]
[1736363725938,20.0,194.98,194.89,25.18618102]
[1736363726123,0.3357,195.08,194.88,25.95548632]
[1736363726325,24.112584,195.08,194.89,25.18618102]
[1736363726530,24.112584,195.08,194.86,1.6603]
[1736363726531,59.112584,195.08,194.86,1.6603]
[1736363726732,23.776884,195.06,194.86,4.8203]
[1736363727128,23.776884,195.02,194.81,26.76488102]
[1736363727334,23.776884,195.0,194.81,1.5787]
[1736363727656,58.776884,194.98,194.77,6.4855]
[1736363727837,23.776884,194.98,194.78,25.18618102]
[1736363728231,20.0,194.92,194.78,25.18618102]
[1736363728459,20.0,194.97,194.79,25.18618102]
[1736363728647,20.0,194.97,194.8,25.18618102]
[1736363728955,20.0,194.93,194.82,25.18618102]
[1736363729126,20.0,194.93,194.84,25.18618102]
[1736363729330,20.0,194.93,194.85,25.95568615]
[1736363729644,3.4944,194.99,194.87,25.18618102]
[1736363729953,23.4944,194.99,194.89,25.18618102]
[1736363730146,23.4944,194.99,194.88,25.18618102]
[1736363730460,3.4944,194.99,194.87,25.95554607]
[1736363730953,3.4944,194.99,194.88,25.18618102]
[1736363731339,3.4944,194.99,194.87,0.76936505]
[1736363731340,3.4944,194.99,194.87,25.95554607]
[1736363731548,3.4944,194.99,194.87,0.76936505]
[1736363731757,20.0,194.95,194.83,3.16]
[1736363731929,20.0,194.95,194.83,28.34618102]
[1736363732131,20.0,194.95,194.84,25.18618102]
[1736363732443,20.0,195.03,194.9,25.18618102]
[1736363732650,20.0,195.03,194.92,25.18618102]
[1736363732850,3.4944,195.04,194.91,25.95542781]
[1736363733878,3.4944,195.04,194.91,0.76924679]
[1736363734971,20.0,195.0,194.89,3.16]
[1736363735467,3.4944,195.04,194.9,25.18618102]
[1736363735764,3.4944,195.04,194.92,25.18618102]
[1736363735951,3.4944,195.04,194.93,25.95530324]
[1736363736156,3.4944,195.09,194.95,25.18618102]
[1736363736339,3.8301,195.03,194.86,20.0]
[1736363736540,3.8301,195.03,194.87,25.18618102]
[1736363736740,20.0,195.02,194.87,25.18618102]
[1736363737076,20.0,195.02,194.9,25.18618102]
[1736363737376,3.8301,195.13,194.93,25.18618102]
[1736363737612,20.0,195.11,194.94,29.11528353]
[1736363737761,3.8301,195.13,194.94,29.11528353]
[1736363738144,3.8301,195.13,194.96,25.18618102]
[1736363738448,3.8301,195.13,194.98,25.18618102]
[1736363738652,3.8301,195.13,195.0,25.18618102]
[1736363738969,3.8301,195.13,194.99,0.76888752]
[1736363739143,23.776884,195.12,194.99,3.16]
[1736363739348,20.0,195.09,194.99,3.16]
[1736363739565,20.0,195.05,194.94,3.16]
[1736363739942,23.776884,195.08,194.94,3.16]
[1736363740146,20.0,195.05,194.94,3.16]
[1736363740643,3.8301,195.13,194.97,25.18618102]
[1736363740954,20.0,195.09,194.95,25.95528895]
[1736363741247,20.0,195.09,194.96,25.18618102]
[1736363741456,20.0,195.09,194.97,0.76896665]
[1736363742274,20.0,195.09,194.95,25.18618102]
[1736363742471,20.0,195.05,194.93,0.76900972]
[1736363742652,20.0,195.05,194.93,3.16]
[1736363742853,20.0,195.05,194.94,25.18618102]
[1736363743054,12.8289,195.11,194.97,25.18618102]
[1736363743255,3.8301,195.13,195.0,25.18618102]
[1736363743854,3.8301,195.13,194.99,25.95499391]
[1736363744066,3.8301,195.13,195.0,25.18618102]
[1736363744261,3.4944,195.13,195.01,25.955004]
[1736363744454,3.4944,195.13,195.03,25.18618102]
[1736363744681,3.4944,195.13,195.03,25.9548754]
[1736363745056,20.0,195.09,194.99,0.76869072]
[1736363745258,20.0,195.09,194.95,29.11512269]
[1736363745752,20.0,195.09,194.95,3.92894167]
[1736363745950,3.4944,195.13,194.95,3.16]
[1736363745951,20.0,195.05,194.95,3.16]
[1736363746179,20.0,195.01,194.88,3.16]
[1736363746967,23.776884,195.0,194.86,1.5654]
[1736363747176,20.0,194.97,194.86,26.75158102]
[1736363747378,20.0,194.97,194.87,25.95552112]
[1736363747684,23.776884,195.03,194.89,25.18618102]
[1736363747890,20.0,195.0,194.89,25.95542124]
[1736363748360,20.0,195.01,194.89,25.95542124]
[1736363748764,20.0,195.01,194.88,25.18618102]
[1736363748970,20.0,195.01,194.89,25.18618102]
[1736363749186,3.4944,195.04,194.93,25.18618102]
[1736363749393,0.3357,195.06,194.96,41.10327225]
[1736363749682,3.4944,195.08,194.97,41.87225802]
[1736363749893,3.4944,195.08,194.98,41.10327225]
[1736363750188,0.3357,195.12,194.99,41.8722156]
[1736363750380,0.3357,195.12,195.01,41.10327225]
[1736363750562,0.3357,195.12,195.0,41.10327225]
[1736363751761,0.3357,195.12,195.01,0.7688419]
[1736363751953,3.4944,195.14,195.04,41.10327225]
[1736363752262,0.3357,195.18,195.06,41.10327225]
[1736363752478,0.3357,195.18,195.07,41.10327225]
[1736363752677,0.3357,195.18,195.06,41.10327225]
[1736363752865,0.3357,195.18,195.07,0.76860645]
[1736363753057,0.3357,195.18,195.07,41.8718787]
[1736363753257,0.3357,195.18,195.07,0.76860645]
[1736363753569,20.0,195.16,195.05,3.16]
[1736363754472,20.0,195.16,195.02,41.10327225]
[1736363754665,20.0,195.16,195.01,3.16]
[1736363754899,23.776884,195.15,195.01,3.16]
[1736363755063,43.776884,195.15,195.01,3.16]
[1736363755677,20.0,195.16,195.01,45.03214994]
[1736363756190,23.776884,195.15,194.97,43.46251299]
[1736363756386,20.0,195.12,194.97,4.7505]
[1736363756568,20.0,195.08,194.97,3.16]
[1736363756764,23.4944,195.08,194.95,41.10327225]
[1736363757287,23.4944,195.08,194.94,50.72327225]
[1736363758690,20.0,195.04,194.92,1.6132]
[1736363758986,20.0,195.04,194.94,41.10327225]
[1736363759156,0.3357,195.07,194.96,41.10327225]
[1736363759360,3.4944,195.08,194.96,41.10327225]
[1736363759662,3.4944,195.08,194.97,41.87228461]
[1736363760082,3.4944,195.08,194.97,0.76901236]
[1736363760290,3.4944,195.08,194.98,41.10327225]
[1736363760486,0.3357,195.12,195.01,41.10327225]
[1736363760697,0.3357,195.17,195.04,41.10327225]
[1736363760996,0.3357,195.22,195.09,41.10327225]
[1736363761172,3.4944,195.23,195.13,41.10327225]
[1736363761498,20.0,195.27,195.15,41.10327225]
[1736363761694,20.0,195.27,195.16,44.26327225]
[1736363761866,20.0,195.27,195.16,41.10327225]
[1736363762198,20.0,195.25,195.17,0.76828466]
[1736363762694,20.0,195.25,195.15,3.16]
[1736363762896,20.0,195.21,195.15,3.16]
[1736363763469,3.4944,195.29,195.15,3.16]
[1736363764093,20.0,195.21,195.14,3.16]
[1736363764299,20.0,195.21,195.11,3.16]
[1736363764477,20.0,195.21,195.11,45.03174058]
[1736363764672,3.4944,195.29,195.11,45.03174058]
[1736363764864,3.4944,195.29,195.14,41.10327225]
[1736363765172,23.776884,195.28,195.14,41.10327225]
[1736363765390,23.776884,195.28,195.11,3.92846833]
[1736363765391,23.776884,195.28,195.11,45.03174058]
[1736363765973,20.0,195.25,195.11,45.03174058]
[1736363766280,23.776884,195.28,195.14,41.10327225]
[1736363766594,3.4944,195.29,195.18,41.10327225]
[1736363766796,3.4944,195.29,195.19,0.7681084]
[1736363767091,3.4944,195.29,195.19,3.9281084]
[1736363767290,23.776884,195.28,195.19,3.16]
[1736363767615,3.4944,195.29,195.19,3.16]
[1736363767794,3.4944,195.29,195.2,41.10327225]
[1736363768089,3.4944,195.29,195.19,3.92811552]
[1736363768090,3.4944,195.29,195.19,45.03138777]
[1736363768274,3.4944,195.29,195.19,3.92811552]
[1736363768874,0.3357,195.33,195.2,41.10327225]
[1736363769086,0.3357,195.33,195.21,41.87129305]
[1736363769590,3.4944,195.34,195.22,41.10327225]
[1736363769904,3.4944,195.34,195.21,41.87129305]
[1736363770068,20.0,195.3,195.2,41.10327225]
[1736363770273,20.0,195.3,195.21,0.76809936]
[1736363770493,20.0,195.3,195.21,41.87137161]
[1736363770668,3.4944,195.34,195.22,41.10327225]
[1736363771003,3.4944,195.34,195.21,41.10327225]
[1736363771370,20.0,195.3,195.21,41.10327225]
[1736363771575,20.0,195.3,195.19,6.2648]
[1736363771772,3.4944,195.34,195.25,41.10327225]
[1736363771982,0.3357,195.38,195.26,41.87114594]
[1736363772312,3.4944,195.39,195.27,41.10327225]
[1736363772476,3.4944,195.39,195.28,41.87101062]
[1736363772679,3.4944,195.39,195.29,3.18]
[1736363772895,3.4944,195.39,195.3,0.76775003]
[1736363773306,0.3357,195.43,195.33,41.10327225]
[1736363773487,3.4944,195.45,195.34,0.76755384]
[1736363773678,3.4944,195.45,195.34,41.87082609]
[1736363774002,3.4944,195.45,195.34,0.76755384]
[1736363774189,3.4944,195.45,195.29,3.94752671]
[1736363774497,20.0,195.37,195.29,0.76752671]
[1736363774696,20.0,195.37,195.28,41.87110559]
[1736363774900,3.4944,195.45,195.3,41.10327225]
[1736363775118,3.4944,195.45,195.28,0.76783334]
[1736363775119,3.4944,195.45,195.32,41.10327225]
[1736363775302,3.4944,195.45,195.33,0.76754144]
[1736363775503,3.4944,195.45,195.33,3.18]
[1736363775801,20.0,195.41,195.33,3.18]
[1736363776008,20.0,195.37,195.33,3.18]
[1736363776303,20.0,195.37,195.25,1.5217]
[1736363776512,20.0,195.37,195.26,0.76786554]
[1736363776804,20.0,195.37,195.25,1.5217]
[1736363777107,3.18,195.42,195.19,1.6063]
[1736363777108,20.0,195.31,195.19,1.6063]
[1736363777486,20.0,195.31,195.21,41.10327225]
[1736363777700,20.0,195.31,195.22,41.87127801]
[1736363777879,3.4944,195.35,195.24,41.10327225]
[1736363778088,3.4944,195.35,195.27,41.10327225]
[1736363778286,3.4944,195.41,195.27,41.87107016]
[1736363778487,3.4944,195.41,195.27,0.76779791]
[1736363778706,20.0,195.36,195.25,41.10327225]
[1736363778919,20.0,195.36,195.26,41.87115388]
[1736363779284,20.0,195.36,195.26,0.76788163]
[1736363779822,20.0,195.36,195.27,64.88015625]
[1736363779991,43.776884,195.4,195.28,0.76775246]
[1736363780188,23.776884,195.37,195.24,44.30327225]
[1736363780520,23.776884,195.33,195.21,41.10327225]
[1736363780714,20.0,195.3,195.2,45.09114854]
[1736363780893,20.0,195.4,195.22,41.10327225]
[1736363781215,20.0,195.4,195.2,3.98787629]
[1736363781216,23.776884,195.39,195.23,0.76792435]
[1736363781394,23.776884,195.35,195.2,3.98792435]
[1736363781589,23.776884,195.31,195.2,3.22]
[1736363781786,20.0,195.32,195.19,43.47766354]
[1736363781981,20.0,195.28,195.19,46.69766354]
[1736363782798,2.07297257,195.4,195.2,41.10327225]
[1736363783012,20.0,195.38,195.2,41.10327225]
[1736363783187,20.0,195.33,195.19,45.92957225]
[1736363783393,20.0,195.29,195.2,0.76812312]
[1736363783830,20.0,195.29,195.19,3.22]
[1736363783990,23.776884,195.28,195.16,3.2]
[1736363784318,20.0,195.25,195.16,3.2]
[1736363784497,20.0,195.25,195.14,44.70389474]
[1736363784823,20.0,195.21,195.11,3.2]
[1736363785127,20.0,195.21,195.12,41.87172153]
[1736363785418,20.0,195.27,195.11,3.2]
[1736363785592,20.0,195.23,195.11,44.30327225]
[1736363785791,20.0,195.23,195.11,3.2]
[1736363786117,20.0,195.19,195.11,3.2]
[1736363787104,23.776884,195.18,195.05,47.19937225]
[1736363787309,23.776884,195.18,195.06,41.10327225]
[1736363787725,3.4944,195.19,195.07,41.87189585]
[1736363787926,3.4944,195.19,195.05,50.41937225]
[1736363788224,20.0,195.15,195.05,6.0961]
[1736363788407,20.0,195.11,195.0,6.0961]
[1736363788607,23.776884,195.1,194.99,3.24]
[1736363788808,20.0,195.07,194.99,3.24]
[1736363789006,20.0,195.07,194.95,6.0961]
[1736363789323,20.0,195.07,194.95,47.19937225]
[1736363789512,20.0,195.13,194.97,41.10327225]
[1736363789711,20.0,195.13,194.95,6.86522592]
[1736363789712,20.0,195.13,194.99,41.10327225]
[1736363790104,20.0,195.09,194.98,41.10327225]
[1736363790302,20.0,195.09,194.97,41.87227037]
[1736363790708,23.776884,195.08,194.95,47.19937225]
[1736363791026,20.0,195.05,194.96,3.24]
[1736363791329,20.0,195.05,194.97,41.10327225]
[1736363791510,20.0,195.05,194.95,47.96853806]
[1736363791828,20.0,195.05,194.95,47.19937225]
[1736363792206,20.0,195.05,194.96,41.10327225]
[1736363792508,20.0,195.05,194.95,47.96842816]
[1736363793320,2.02877785,195.16,195.0,41.10327225]
[1736363793530,17.0501,195.19,194.98,41.10327225]
[1736363793706,20.0,195.12,194.98,41.10327225]
[1736363794023,20.0,195.08,194.95,47.19937225]
[1736363794226,23.776884,195.07,194.95,47.19937225]
[1736363794604,20.0,195.11,194.95,9.3361]
[1736363794998,40.0,195.18,194.96,41.10327225]
[1736363795224,20.0,195.13,194.95,50.43937225]
[1736363795427,23.776884,195.12,194.95,50.43937225]
[1736363795623,20.0,195.05,194.96,41.10327225]
[1736363795923,20.0,195.05,194.95,50.43937225]
[1736363796127,20.0,195.05,194.92,42.73437225]
[1736363796337,20.0,195.01,194.92,1.6311]
[1736363796627,23.776884,195.0,194.9,6.4854]
[1736363797198,20.0,195.01,194.9,6.4854]
[1736363798201,20.0,194.97,194.87,3.24]
[1736363798400,20.0,194.97,194.86,1.5551]
[1736363798401,23.776884,194.96,194.86,1.5551]
[1736363798623,20.0,194.93,194.86,1.5551]
[1736363799503,20.0,194.93,194.85,9.8373]
[1736363799710,20.0,194.93,194.85,6.5973]
[1736363799909,20.0,194.93,194.82,44.32327225]
[1736363800309,20.0,194.93,194.85,41.10327225]
[1736363800519,3.4944,195.02,194.87,41.10327225]
[1736363800728,3.4944,195.02,194.88,41.10327225]
[1736363801046,20.0,194.98,194.88,41.10327225]
[1736363801204,20.0,194.98,194.86,41.87277054]
[1736363801404,23.776884,194.97,194.85,41.10327225]
[1736363801606,23.776884,194.97,194.86,41.10327225]
[1736363801819,23.776884,194.97,194.85,41.87275955]
[1736363802035,23.776884,194.97,194.86,41.10327225]
[1736363802237,20.0,194.94,194.83,41.10327225]
[1736363802424,20.0,194.94,194.81,2.27549036]
[1736363802425,20.0,194.94,194.85,41.10327225]
[1736363803419,20.0,194.94,194.85,25.32088671]
[1736363803613,20.0,194.94,194.86,25.32088671]
[1736363803934,3.4944,195.02,194.84,3.98962699]
[1736363803935,3.4944,195.02,194.88,25.32088671]
[1736363804134,20.0,194.98,194.87,25.32088671]
[1736363804340,20.0,194.98,194.9,25.32088671]
[1736363804710,20.0,194.98,194.89,25.32088671]
[1736363804906,20.0,194.98,194.88,0.76940645]
[1736363805110,20.0,194.98,194.87,25.32088671]
[1736363805721,20.0,194.98,194.86,26.09029639]
[1736363805926,20.0,194.94,194.86,0.76940968]
[1736363806113,23.776884,194.93,194.81,30.02688671]
[1736363806309,23.776884,194.93,194.81,4.706]
[1736363806515,20.0,194.9,194.81,1.506]
[1736363806739,20.0,194.9,194.81,26.82688671]
[1736363806949,0.3357,194.96,194.83,25.32088671]
[1736363807121,20.0,194.95,194.82,26.09053411]
[1736363807315,20.0,194.95,194.82,41.9302167]
[1736363807533,20.0,194.91,194.82,0.7696474]
[1736363807725,20.0,194.91,194.81,42.6665693]
[1736363807925,20.0,194.91,194.83,41.1605693]
[1736363808124,20.0,194.91,194.81,1.506]
[1736363808125,0.3357,195.01,194.85,41.1605693]
[1736363808333,23.776884,194.99,194.85,41.1605693]
[1736363808817,23.776884,194.95,194.86,41.1605693]
[1736363809023,20.0,194.96,194.86,41.1605693]
[1736363809326,20.0,194.99,194.88,41.1605693]
[1736363809729,20.0,194.98,194.88,41.1605693]
[1736363810549,24.112584,195.01,194.86,41.1605693]
[1736363810748,20.0,194.94,194.85,41.1605693]
[1736363812669,20.0,194.9,194.81,1.506]
[1736363812950,23.776884,194.89,194.81,1.506]
[1736363813130,23.776884,194.89,194.8,6.6397]
[1736363813332,20.0,194.9,194.8,6.6397]
[1736363814321,20.0,194.9,194.81,41.1605693]
[1736363814527,0.3357,195.01,194.86,41.1605693]
[1736363814829,20.0,194.97,194.87,41.1605693]
[1736363815031,0.3357,195.01,194.88,41.1605693]
[1736363815529,20.0,194.95,194.88,44.3205693]
[1736363816046,20.0,194.98,194.88,44.3205693]
[1736363816251,24.112584,195.01,194.88,44.3205693]
[1736363816427,24.112584,195.01,194.89,41.1605693]
[1736363816622,20.0,194.98,194.89,41.1605693]
[1736363816847,20.0,194.98,194.88,3.16]
[1736363817148,20.0,194.98,194.89,41.1605693]
[1736363817352,20.0,194.98,194.88,44.3205693]
[1736363818144,20.0,194.98,194.89,41.1605693]
[1736363818345,20.0,194.98,194.9,41.1605693]
[1736363818657,0.3357,195.06,194.92,41.1605693]
[1736363818846,24.112584,195.06,194.92,41.92977727]
[1736363819460,3.4944,195.07,194.95,41.1605693]
[1736363819754,0.3357,195.11,195.0,41.1605693]
[1736363819949,0.3357,195.11,195.01,41.1605693]
[1736363820168,3.4944,195.12,195.01,0.76891927]
[1736363820355,86.24,195.24,195.05,41.1605693]
[1736363820356,3.4944,195.18,195.05,41.1605693]
[1736363820662,3.4944,195.18,195.07,41.1605693]
[1736363820956,3.4944,195.18,195.05,43.59376075]
[1736363821161,23.776884,195.17,195.07,41.1605693]
[1736363821336,20.0,195.14,195.06,41.1605693]
[1736363821656,23.776884,195.17,195.06,41.1605693]
[1736363821855,3.4944,195.18,195.06,41.1605693]
[1736363822027,0.3357,195.21,195.08,41.1605693]
[1736363822228,3.16,195.26,195.1,41.1605693]
[1736363822229,3.4944,195.23,195.1,41.1605693]
[1736363822457,3.4944,195.28,195.14,41.1605693]
[1736363822638,3.4944,195.28,195.15,41.92887229]
[1736363822841,3.4944,195.28,195.14,41.1605693]
[1736363823041,23.4944,195.28,195.13,6.3743]
[1736363823358,20.0,195.2,195.13,6.3743]
[1736363823557,3.4944,195.28,195.13,6.3743]
[1736363823735,3.4944,195.28,195.14,41.1605693]
[1736363824129,23.4944,195.28,195.14,41.1605693]
[1736363824331,0.3357,195.31,195.18,41.1605693]
[1736363824538,0.3357,195.31,195.18,3.16]
[1736363825127,0.3357,195.31,195.18,45.0889206]
[1736363825329,3.4944,195.33,195.2,41.1605693]
[1736363825562,0.3357,195.37,195.22,41.1605693]
[1736363825766,0.3357,195.37,195.23,41.92858262]
[1736363825956,20.0,195.34,195.23,41.92858262]
[1736363826257,20.0,195.3,195.21,41.1605693]
[1736363826556,20.0,195.3,195.23,41.1605693]
[1736363826750,20.0,195.3,195.22,41.92869289]
[1736363826965,20.3357,195.37,195.22,41.92869289]
[1736363827133,3.4944,195.38,195.25,41.1605693]
[1736363827447,3.4944,195.38,195.25,0.76792478]
[1736363827641,0.3357,195.42,195.27,41.1605693]
[1736363827838,20.0,195.35,195.27,3.16]
[1736363828038,0.3357,195.42,195.27,3.16]
[1736363828364,20.0,195.37,195.18,47.6178693]
[1736363828533,20.0,195.3,195.18,3.16]
[1736363828863,20.0,195.26,195.18,3.16]
[1736363829737,3.4944,195.34,195.18,3.16]
[1736363829738,3.4944,195.34,195.19,41.1605693]
[1736363830138,20.0,195.3,195.2,41.1605693]
[1736363830336,3.4944,195.34,195.23,41.1605693]
[1736363830645,23.776884,195.38,195.23,41.1605693]
[1736363830845,20.0,195.35,195.23,41.1605693]
[1736363831051,20.0,195.35,195.21,41.1605693]
[1736363831239,23.776884,195.34,195.2,41.92867394]
[1736363831439,23.776884,195.34,195.19,41.1605693]
[1736363831837,23.776884,195.34,195.18,44.3205693]
[1736363832043,20.0,195.27,195.18,3.16]
[1736363832364,6.6544,195.39,195.23,41.1605693]
[1736363832758,6.6544,195.39,195.19,0.76823593]
[1736363832759,20.0,195.36,195.24,41.1605693]
[1736363833261,20.0,195.32,195.23,41.1605693]
[1736363833465,20.0,195.32,195.21,41.1605693]
[1736363833764,20.0,195.36,195.23,41.1605693]
[1736363834263,6.6544,195.39,195.22,0.76810148]
[1736363834264,23.776884,195.38,195.24,41.1605693]
[1736363834574,20.0,195.35,195.22,0.76810148]
[1736363834747,20.0,195.3,195.18,3.16]
[1736363835068,20.0,195.26,195.16,1.6585]
[1736363835258,20.0,195.26,195.16,42.8190693]
[1736363835562,20.0,195.26,195.16,1.6585]
[1736363836436,20.0,195.22,195.14,3.16]
[1736363836869,20.0,195.22,195.15,41.1605693]
[1736363837048,3.4944,195.27,195.15,41.1605693]
[1736363837455,0.3357,195.3,195.15,41.1605693]
[1736363837665,0.3357,195.3,195.17,41.1605693]
[1736363837961,20.0,195.26,195.14,41.1605693]
[1736363838150,20.0,195.26,195.15,41.92896975]